[Event "36th National Sub Junior 2019"]
[Site "Tiruchengode"]
[Date "2019.07.12"]
[Round "6.2"]
[White "Divya Deshmukh"]
[Black "Sai Divya M"]
[Result "1/2-1/2"]
[ECO "B85"]
[WhiteElo "2373"]
[BlackElo "1784"]
[Annotator "ChessBase"]
[PlyCount "118"]
[EventDate "2019.07.09"]
[EventCountry "IND"]
[SourceTitle "playchess.com"]
[Source "ChessBase"]
[SourceQuality "1"]
[TimeControl "5400+30"]

1. e4 {[%emt 0:00:00]} c5 {[%emt 0:00:37]} 2. Nf3 {[%emt 0:00:00]} e6 {[%emt 0:00:47]} 3. d4 {[%emt 0:00:00]} cxd4 {[%emt 0:00:04]} 4. Nxd4 {[%emt 0:00:00]} Nc6 {[%emt 0:00:36]} 5. Nc3 {[%emt 0:00:00]} Qc7 {[%emt 0:02:14]} 6. Be2 {[%emt 0:00:18]} a6 {[%emt 0:00:09]} 7. O-O {[%emt 0:00:29]} Nf6 {[%emt 0:00:46]} 8. Be3 {[%emt 0:00:04]} Be7 {[%emt 0:02:10]} 9. f4 {[%emt 0:00:42]} d6 {[%emt 0:00:17]} 10. Bf3 {[%emt 0:00:54]} O-O {[%emt 0:02:04]} 11. Qe1 {[%emt 0:00:17]} Bd7 {[%emt 0:02:10]} 12. Qg3 {[%emt 0:00:13]} Nxd4 {[%emt 0:03:41]} 13. Bxd4 {[%emt 0:00:17]} Bc6 {[%emt 0:01:27]} 14. Kh1 {[%emt 0:03:04]} b5 {[%emt 0:09:27]} 15. Rae1 {[%emt 0:05:42]} b4 {[%emt 0:05:01]} 16. Nd1 {[%emt 0:05:28]} Qb7 {[%emt 0:09:05]} 17. Nf2 {[%emt 0:02:13]} Rfd8 {[%emt 0:06:00]} 18. b3 {[%emt 0:05:15]} a5 {[%emt 0:09:08]} 19. Nd3 {[%emt 0:06:58]} Rac8 {[%emt 0:05:04]} 20. Ba1 {[%emt 0:09:59]} Qb6 {[%emt 0:09:26]} 21. e5 {[%emt 0:19:39]} dxe5 {[%emt 0:04:22]} 22. fxe5 {[%emt 0:07:39]} Nd5 {[%emt 0:02:33]} 23. Bxd5 {[%emt 0:01:10]} Bxd5 {[%emt 0:02:46]} 24. Re2 {[%emt 0:00:17]} Rc7 {[%emt 0:01:50]} 25. Ref2 {[%emt 0:07:10]} Bf8 {[%emt 0:00:58]} 26. Nf4 {[%emt 0:02:33]} Be4 {[%emt 0:01:13]} 27. c4 {[%emt 0:00:34]} bxc3 {[%emt 0:02:26]} 28. Bxc3 {[%emt 0:00:02]} Rdc8 {[%emt 0:02:21]} 29. Ne2 {[%emt 0:02:15]} Bc5 {[%emt 0:01:04]} 30. Rf4 {[%emt 0:00:11]} Bg6 {[%emt 0:00:15]} 31. Qe1 {[%emt 0:03:29]} Ra7 {[%emt 0:01:58]} 32. h4 {[%emt 0:09:23]} Bd3 {[%emt 0:01:12]} 33. R1f3 {[%emt 0:02:02]} Bg6 {[%emt 0:02:53]} 34. Ng3 {[%emt 0:00:27]} Rd8 {[%emt 0:02:55]} 35. Kh2 {[%emt 0:00:27]} Bd3 {[%emt 0:00:38]} 36. Ra4 {[%emt 0:01:47]} Qb5 {[%emt 0:01:48]} 37. Rxa5 {[%emt 0:05:27]} Rxa5 {[%emt 0:00:10]} 38. Bxa5 {[%emt 0:00:00]} Ra8 {[%emt 0:00:38]} 39. Bc7 {[%emt 0:00:02]} Rxa2 {[%emt 0:02:37]} 40. Qd1 {[%emt 0:00:01]} Qb4 {[%emt 0:00:21]} 41. Kh3 {[%emt 0:00:57]} Be7 {[%emt 0:01:11]} 42. Rf6 {[%emt 0:01:57]} Rd2 {[%emt 0:02:10]} 43. Qf3 {[%emt 0:01:24]} gxf6 {[%emt 0:00:37]} 44. Qa8+ {[%emt 0:00:05]} Kg7 {[%emt 0:00:24]} 45. Ba5 {[%emt 0:00:45]} Qa3 {[%emt 0:01:51]} 46. Nh5+ {[%emt 0:00:34]} Kg6 {[%emt 0:00:43]} 47. Qg8+ {[%emt 0:00:02]} Kf5 {[%emt 0:00:12]} 48. Bxd2 {[%emt 0:01:04]} Qxb3 {[%emt 0:00:29]} 49. Ng3+ {[%emt 0:00:30]} Kxe5 {[%emt 0:00:10]} 50. Qc8 {[%emt 0:00:35]} f5 {[%emt 0:01:07]} 51. Bc3+ {[%emt 0:00:30]} Kd6 {[%emt 0:00:20]} 52. Ba5 {[%emt 0:00:37]} Qc4 {[%emt 0:00:48]} 53. Qb8+ {[%emt 0:00:23]} Kd7 {[%emt 0:00:33]} 54. Qb7+ {[%emt 0:00:11]} Ke8 {[%emt 0:00:12]} 55. Qb8+ {[%emt 0:00:35]} Kd7 {[%emt 0:00:11]} 56. Qb7+ {[%emt 0:00:13]} Ke8 {[%emt 0:00:11]} 57. Qa8+ {[%emt 0:00:41]} Kd7 {[%emt 0:00:07]} 58. Qa7+ {[%emt 0:00:22]} Kd6 {[%emt 0:00:45]} 59. Qb8+ {[%emt 0:00:03]} Kd7 {[%emt 0:01:15]} 1/2-1/2

[Event "36th National Sub Junior 2019"]
[Site "Tiruchengode"]
[Date "2019.07.12"]
[Round "6.3"]
[White "Varsha Ramesh"]
[Black "Bhagyashree Patil"]
[Result "0-1"]
[ECO "C50"]
[WhiteElo "1814"]
[BlackElo "1703"]
[Annotator "NA"]
[PlyCount "90"]
[EventDate "2019.07.09"]
[EventCountry "IND"]
[SourceTitle "playchess.com"]
[Source "ChessBase"]
[SourceQuality "1"]
[TimeControl "5400+30"]

1. e4 {[%emt 0:01:23]} e5 {[%emt 0:00:00]} 2. Nf3 {[%emt 0:01:23]} Nc6 {[%emt 0:00:00]} 3. Bc4 {[%emt 0:00:07]} Be7 {[%emt 0:00:54]} 4. d3 {[%emt 0:01:06]} d6 {[%emt 0:01:54]} 5. a4 {[%emt 0:01:11]} Nf6 {[%emt 0:01:44]} 6. h3 {[%emt 0:03:08]} Be6 {[%emt 0:03:31]} 7. Bxe6 {[%emt 0:02:56]} fxe6 {[%emt 0:00:07]} 8. Bg5 {[%emt 0:01:10]} Qd7 {[%emt 0:02:33]} 9. Bxf6 {[%emt 0:02:04]} Bxf6 {[%emt 0:01:24]} 10. O-O {[%emt 0:00:26]} h5 {[%emt 0:05:47]} 11. Nh2 {[%emt 0:02:35]} O-O-O {[%emt 0:01:50]} 12. Nc3 {[%emt 0:01:34]} Rdf8 {[%emt 0:04:18]} 13. Ne2 {[%emt 0:03:20]} Bg5 {[%emt 0:01:35]} 14. d4 {[%emt 0:02:41]} exd4 {[%emt 0:03:33]} 15. Nxd4 {[%emt 0:00:16]} Bf4 {[%emt 0:08:20]} 16. Nhf3 {[%emt 0:03:28]} e5 {[%emt 0:05:02]} 17. Nxc6 {[%emt 0:01:22]} Qxc6 {[%emt 0:00:25]} 18. g3 {[%emt 0:02:35]} Bh6 {[%emt 0:05:12]} 19. Qd3 {[%emt 0:00:20]} Rf7 {[%emt 0:01:59]} 20. b4 {[%emt 0:04:34]} Rhf8 {[%emt 0:01:12]} 21. Ne1 {[%emt 0:00:52]} Qb6 {[%emt 0:02:09]} 22. a5 {[%emt 0:05:47]} Qxb4 {[%emt 0:00:50]} 23. a6 {[%emt 0:00:21]} b6 {[%emt 0:00:35]} 24. Qd5 {[%emt 0:03:02]} Be3 {[%emt 0:02:34]} 25. Nd3 {[%emt 0:01:00]} Qd4 {[%emt 0:02:03]} 26. c3 {[%emt 0:14:17]} Qxd5 {[%emt 0:07:09]} 27. exd5 {[%emt 0:00:11]} Bd2 {[%emt 0:00:34]} 28. c4 {[%emt 0:02:18]} Rf3 {[%emt 0:00:56]} 29. Ra2 {[%emt 0:04:22]} Rxd3 {[%emt 0:02:38]} 30. Rd1 {[%emt 0:00:06]} Rff3 {[%emt 0:03:05]} 31. Rdxd2 {[%emt 0:00:46]} Rxd2 {[%emt 0:00:01]} 32. Rxd2 {[%emt 0:00:02]} Rc3 {[%emt 0:00:42]} 33. f4 {[%emt 0:01:11]} Rxg3+ {[%emt 0:01:07]} 34. Kh2 {[%emt 0:00:27]} exf4 {[%emt 0:00:26]} 35. Re2 {[%emt 0:00:18]} Re3 {[%emt 0:04:26]} 36. Rxe3 {[%emt 0:01:08]} fxe3 {[%emt 0:00:07]} 37. Kg3 {[%emt 0:00:04]} c6 {[%emt 0:01:22]} 38. h4 {[%emt 0:01:38]} cxd5 {[%emt 0:00:25]} 39. cxd5 {[%emt 0:00:01]} Kc7 {[%emt 0:00:28]} 40. Kf3 {[%emt 0:00:05]} b5 {[%emt 0:00:03]} 41. Kxe3 {[%emt 0:00:07]} Kb6 {[%emt 0:00:09]} 42. Kf4 {[%emt 0:00:22]} b4 {[%emt 0:00:21]} 43. Ke3 {[%emt 0:00:38]} Kxa6 {[%emt 0:00:06]} 44. Kd4 {[%emt 0:00:14]} Kb5 {[%emt 0:00:03]} 45. Kd3 {[%emt 0:00:10]} a5 {[%emt 0:00:05]} 0-1

[Event "36th National Sub Junior 2019"]
[Site "Tiruchengode"]
[Date "2019.07.13"]
[Round "7.1"]
[White "Bhagyashree Patil"]
[Black "Mrudul Dehankar"]
[Result "1/2-1/2"]
[ECO "B90"]
[WhiteElo "1703"]
[BlackElo "2074"]
[Annotator "NA"]
[PlyCount "77"]
[EventDate "2019.07.09"]
[EventCountry "IND"]
[SourceTitle "playchess.com"]
[Source "ChessBase"]
[SourceQuality "1"]
[TimeControl "5400+30"]

{[%evp 8,77,22,22,20,18,32767,32767,32767,32767,32767,32767,32767,32767,32767,32767,32767,32767,32767,32767,0,-8,31,12,16,32767,32767,32767,0,-13,34,10,32767,32767,32767,32767,32767,32767,-53,-54,32767,-29,-40,-16,32767,32767,32767,32767,32767,32767,32767,32767,32767,-110,-93,32767,-58,-77,-19,-62,-31,-85,-5,-221,32767,32767,32767,32767,32767,-177,0,-212]} 1. e4 {[%emt 0:00:00]} c5 {[%emt 0:00:00]} 2. Nf3 {[%emt 0:00:00]} d6 {[%emt 0:00:00]} 3. d4 {[%emt 0:00:00]} cxd4 {[%emt 0:00:00]} 4. Nxd4 {[%emt 0:00:00]} Nf6 {[%emt 0:00:02]} 5. Nc3 {[%emt 0:00:02]} a6 {[%emt 0:00:04]} 6. Be3 {[%emt 0:00:07]} e5 {[%emt 0:00:32]} 7. Nb3 {[%emt 0:00:10]} Be7 {[%emt 0:00:42]} 8. f3 {[%emt 0:04:15]} Be6 {[%emt 0:00:34]} 9. Qd2 {[%emt 0:00:29]} Nbd7 {[%emt 0:02:43]} 10. O-O-O {[%emt 0:02:19]} O-O {[%emt 0:01:56]} 11. g4 {[%emt 0:00:35]} b5 {[%emt 0:01:19]} 12. g5 {[%emt 0:00:34]} Nh5 {[%emt 0:00:48]} 13. Rg1 {[%emt 0:05:50] B90: Sicilian Najdorf: Unusual White 6th moves, 6 Be3 Ng4 and 6 Be3 e5} (13. Kb1 Nb6 14. Na5 Rc8 15. a3 g6 16. h4 Ng3 17. Rh2 Nxf1 18. Rxf1 h5 19. Bxb6 Qxb6 20. Nd5 Bxd5 21. exd5 {½-½ (35) Navara,D (2739)-Wojtaszek,R (2722) Prague 2019}) 13... Nb6 {[%emt 0:11:26]} 14. Nd5 {[%emt 0:07:10]} Nxd5 {[%emt 0:07:43]} 15. exd5 {[%emt 0:00:07]} Bf5 {[%emt 0:14:22]} 16. Kb1 {[%emt 0:08:34]} Rc8 {[%emt 0:03:05]} 17. Bd3 {[%emt 0:00:59]} Bxd3 $146 {[%emt 0:04:00]} ({Predecessor:} 17... Qd7 18. Na5 Bxd3 19. Qxd3 {0-1 (92) Jahncke,G (2106)-Rosner,J (2184) playchess.com INT 2009}) 18. Qxd3 {[%emt 0:00:09]} f5 {[%emt 0:04:43]} 19. Bd2 {[%emt 0:02:09]} Qc7 {[%emt 0:09:51]} 20. Rge1 {[%emt 0:14:32]} Bd8 {[%emt 0:07:34]} 21. h4 {[%emt 0:03:18]} Qf7 {[%emt 0:01:16]} 22. f4 {[%emt 0:04:10]} e4 $1 {[%emt 0:05:50]} 23. Qe2 {[%emt 0:04:41]} Bb6 {[%emt 0:03:45]} 24. Be3 {[%emt 0:01:55]} Bxe3 {[%emt 0:01:16]} 25. Qxe3 {[%emt 0:00:02]} Rfe8 {[%emt 0:09:11]} 26. Rd2 {[%emt 0:01:38]} g6 {[%emt 0:02:28]} 27. Na5 {[%emt 0:05:23]} Rc5 {[%emt 0:03:09]} 28. Red1 {[%emt 0:02:19]} Qc7 {[%emt 0:01:17]} 29. Nc6 {[%emt 0:02:25]} Qb6 {[%emt 0:01:23]} 30. Re1 {[%emt 0:01:56]} (30. Nd4 $11 {remains equal.}) 30... b4 {[%emt 0:01:21]} 31. Rd4 {[%emt 0:01:38]} Rb5 {[%emt 0:00:39]} 32. Qd2 {[%emt 0:04:36]} Qc5 {[%emt 0:01:01]} ({Black should play} 32... a5 $17) 33. Qe3 {[%emt 0:04:08]} a5 {[%emt 0:00:26]} 34. Rc1 {[%emt 0:00:38]} Rb6 {[%emt 0:01:29]} (34... Qb6 $17) 35. Re1 {[%emt 0:04:13]} Rb5 {[%emt 0:00:24]} 36. Rc1 {[%emt 0:00:05]} Rb6 {[%emt 0:00:03]} 37. Re1 {[%emt 0:00:03]} Kf8 {[%emt 0:01:24]} 38. Rc1 {[%emt 0:01:01] [#]} (38. Rf1 $15) 38... Kg8 $2 {[%emt 0:01:14]} (38... Nxf4 $1 $19 {[%mdl 512]} 39. Qxf4 Rxc6 {[%mdl 64] Remove Defender}) 39. Re1 $19 1/2-1/2

[Event "36th National Sub Junior 2019"]
[Site "Tiruchengode"]
[Date "2019.07.13"]
[Round "7.2"]
[White "Garima Gaurav"]
[Black "Divya Deshmukh"]
[Result "0-1"]
[ECO "A47"]
[WhiteElo "1713"]
[BlackElo "2373"]
[Annotator "ChessBase"]
[PlyCount "80"]
[EventDate "2019.07.09"]
[EventCountry "IND"]
[SourceTitle "playchess.com"]
[Source "ChessBase"]
[SourceQuality "1"]
[TimeControl "5400+30"]

1. d4 {[%emt 0:00:00]} Nf6 {[%emt 0:00:00]} 2. Nf3 {[%emt 0:00:00]} e6 {[%emt 0:00:00]} 3. e3 {[%emt 0:00:00]} b6 {[%emt 0:00:00]} 4. Be2 {[%emt 0:00:20]} Bb7 {[%emt 0:00:00]} 5. O-O {[%emt 0:00:15]} Be7 {[%emt 0:00:00]} 6. b3 {[%emt 0:00:29]} O-O {[%emt 0:00:00]} 7. Bb2 {[%emt 0:00:10]} d6 {[%emt 0:01:33]} 8. Nbd2 {[%emt 0:01:14]} c5 {[%emt 0:01:07]} 9. c4 {[%emt 0:00:50]} Nbd7 {[%emt 0:01:34]} 10. Bd3 {[%emt 0:01:24]} Qc7 {[%emt 0:00:17]} 11. Rc1 {[%emt 0:00:44]} Rac8 {[%emt 0:00:14]} 12. Qe2 {[%emt 0:01:17]} Qb8 {[%emt 0:00:57]} 13. Rfd1 {[%emt 0:03:04]} Qa8 {[%emt 0:06:36]} 14. h3 {[%emt 0:03:11]} Rfd8 {[%emt 0:02:10]} 15. Bb1 {[%emt 0:02:20]} Nf8 {[%emt 0:08:01]} 16. Re1 {[%emt 0:03:01]} cxd4 {[%emt 0:03:58]} 17. exd4 {[%emt 0:00:49]} d5 {[%emt 0:00:04]} 18. a3 {[%emt 0:04:38]} a5 {[%emt 0:01:55]} 19. Bd3 {[%emt 0:03:09]} Rc7 {[%emt 0:07:49]} 20. cxd5 {[%emt 0:07:35]} Rxc1 {[%emt 0:00:42]} 21. Rxc1 {[%emt 0:00:13]} Nxd5 {[%emt 0:00:15]} 22. Be4 {[%emt 0:01:02]} Bf6 {[%emt 0:05:08]} 23. g3 {[%emt 0:04:12]} Nd7 {[%emt 0:05:03]} 24. Ne5 {[%emt 0:05:50]} Bxe5 {[%emt 0:02:52]} 25. dxe5 {[%emt 0:00:12]} Nc5 {[%emt 0:01:35]} 26. Rd1 {[%emt 0:08:11]} a4 {[%emt 0:20:59]} 27. b4 {[%emt 0:00:55]} Nc3 {[%emt 0:00:16]} 28. Bxh7+ {[%emt 0:00:38]} Kxh7 {[%emt 0:00:49]} 29. Bxc3 {[%emt 0:00:20]} Ne4 {[%emt 0:00:36]} 30. Nxe4 {[%emt 0:01:52]} Rxd1+ {[%emt 0:00:02]} 31. Qxd1 {[%emt 0:00:08]} Bxe4 {[%emt 0:00:01]} 32. Qd4 {[%emt 0:01:20]} b5 {[%emt 0:10:04]} 33. Kf1 {[%emt 0:02:11]} Bf5 {[%emt 0:06:18]} 34. Kg1 {[%emt 0:00:57]} Kg8 {[%emt 0:00:44]} 35. Qh4 {[%emt 0:00:30]} Qd5 {[%emt 0:02:12]} 36. Qd4 {[%emt 0:02:02]} Qa8 {[%emt 0:04:31]} 37. Qh4 {[%emt 0:00:17]} Be4 {[%emt 0:00:41]} 38. Kf1 {[%emt 0:01:11]} Qd5 {[%emt 0:00:43]} 39. Ke1 {[%emt 0:01:05]} Qd3 {[%emt 0:00:34]} 40. Bb2 {[%emt 0:01:36]} Bf3 {[%emt 0:00:24]} 0-1

[Event "36th National Sub Junior 2019"]
[Site "Tiruchengode"]
[Date "2019.07.13"]
[Round "7.3"]
[White "Jyothsna L"]
[Black "Sai Divya M"]
[Result "0-1"]
[ECO "D95"]
[WhiteElo "1939"]
[BlackElo "1784"]
[Annotator "NA"]
[PlyCount "102"]
[EventDate "2019.07.09"]
[EventCountry "IND"]
[SourceTitle "playchess.com"]
[Source "ChessBase"]
[SourceQuality "1"]
[TimeControl "5400+30"]

1. d4 {[%emt 0:00:44]} Nf6 {[%emt 0:01:12]} 2. Nf3 {[%emt 0:00:02]} g6 {[%emt 0:00:22]} 3. c4 {[%emt 0:00:02]} Bg7 {[%emt 0:00:12]} 4. Nc3 {[%emt 0:00:02]} d5 {[%emt 0:01:17]} 5. e3 {[%emt 0:15:26]} O-O {[%emt 0:01:19]} 6. Qb3 {[%emt 0:02:14]} c6 {[%emt 0:06:53]} 7. Bd2 {[%emt 0:03:50]} Qb6 {[%emt 0:14:55]} 8. Qa3 {[%emt 0:07:32] D95: Grünfeld: 4 Nf3 Bg7 5 e3 0-0 6 Qb3} Re8 {[%emt 0:07:47]} 9. Rc1 {[%emt 0:25:58]} (9. Be2 Bg4 10. cxd5 cxd5 11. h3 Bxf3 12. Bxf3 e6 13. Na4 Qc7 14. O-O Nc6 15. Rfc1 Rec8 {1-0 (78) Iturrizaga Bonelli,E (2625)-Oliva Castaneda,K (2488) Linares 2015}) 9... e6 $146 {[%emt 0:07:02]} ({Predecessor:} 9... Bf8 10. Ne5 Bf5 11. Be2 Nbd7 12. O-O g5 13. cxd5 Nxe5 14. dxe5 Nxd5 15. e4 Nxc3 16. Rxc3 Bxe4 {½-½ (16) Chytilek,R (2334)-Neuman,P (2427) Czech Republic 2018}) 10. Qa4 {[%emt 0:04:22]} Qd8 {[%emt 0:03:00]} 11. Qb3 {[%emt 0:04:35]} Nbd7 {[%emt 0:02:09]} 12. Be2 {[%emt 0:06:39]} Ne4 {[%emt 0:02:25]} 13. O-O {[%emt 0:05:51]} f5 {[%emt 0:03:48]} 14. Nxe4 {[%emt 0:05:44]} (14. Rfd1 $11) 14... dxe4 {[%emt 0:05:26]} 15. Ne1 {[%emt 0:00:54]} Kh8 {[%emt 0:01:08]} 16. Nc2 {[%emt 0:04:48]} b6 {[%emt 0:06:30]} 17. Bc3 {[%emt 0:01:09]} Bb7 {[%emt 0:00:41]} 18. Rcd1 {[%emt 0:00:13]} Qe7 {[%emt 0:00:37]} 19. a4 {[%emt 0:01:16]} Rad8 {[%emt 0:03:30]} 20. a5 {[%emt 0:02:42]} Rb8 {[%emt 0:03:43]} 21. Qa2 {[%emt 0:00:31]} Qd6 {[%emt 0:04:35]} 22. b4 {[%emt 0:00:49]} Qc7 {[%emt 0:00:53]} 23. Qa1 {[%emt 0:00:34]} Re7 {[%emt 0:02:34]} 24. Rd2 {[%emt 0:01:47]} Rd8 {[%emt 0:01:39]} 25. Rfd1 {[%emt 0:00:47]} Nf8 {[%emt 0:01:36] [#]} 26. g3 {[%emt 0:00:56]} (26. b5 $1 $16) 26... g5 {[%emt 0:00:53]} ({Black should try} 26... Kg8 $14) 27. Ne1 {[%emt 0:01:47]} ({White should try} 27. b5) 27... Kg8 {[%emt 0:00:57]} 28. Ng2 {[%emt 0:00:22]} Ng6 {[%emt 0:00:42]} 29. Bh5 {[%emt 0:00:19]} b5 {[%emt 0:01:03]} 30. Bxg6 {[%emt 0:00:38]} hxg6 {[%emt 0:00:02]} 31. h4 {[%emt 0:00:27]} gxh4 $11 {[%emt 0:02:44]} 32. Nxh4 {[%emt 0:00:01]} Kh7 {[%emt 0:00:18]} 33. d5 {[%emt 0:01:47]} Bxc3 {[%emt 0:02:32]} 34. Qxc3 {[%emt 0:00:13]} exd5 {[%emt 0:01:25]} 35. Qf6 {[%emt 0:01:34]} Qd6 {[%emt 0:02:18]} 36. Qg5 {[%emt 0:00:18]} Rg7 {[%emt 0:01:08]} 37. Kg2 {[%emt 0:00:39]} bxc4 {[%emt 0:02:12]} 38. Rh1 {[%emt 0:00:19]} Kg8 {[%emt 0:00:09]} 39. Qh6 {[%emt 0:00:46]} Kf7 {[%emt 0:01:28]} 40. Kg1 {[%emt 0:00:49]} Qf6 {[%emt 0:02:32]} 41. Qf4 {[%emt 0:00:10]} g5 {[%emt 0:00:29]} 42. Qxf5 {[%emt 0:00:51]} gxh4 {[%emt 0:00:16]} 43. Qh5+ {[%emt 0:00:00]} Ke7 {[%emt 0:01:19]} 44. Rxh4 {[%emt 0:00:15]} Rg5 {[%emt 0:00:48]} 45. Qd1 {[%emt 0:01:12]} Rh8 {[%emt 0:00:21]} 46. Rxe4+ {[%emt 0:00:24]} dxe4 {[%emt 0:02:13]} 47. Rd7+ {[%emt 0:00:03]} Ke8 {[%emt 0:00:23]} 48. Rxb7 {[%emt 0:00:32]} Rd5 {[%emt 0:00:10]} 49. Rb8+ {[%emt 0:00:47]} Ke7 {[%emt 0:00:10]} 50. Rb7+ {[%emt 0:00:05]} Kd6 {[%emt 0:00:14]} 51. Qg4 {[%emt 0:00:47]} Qa1+ {[%emt 0:00:09]} 0-1

[Event "36th National Sub Junior 2019"]
[Site "Tiruchengode"]
[Date "2019.07.13"]
[Round "7.4"]
[White "Bristy Mukherjee"]
[Black "Poorna Sri M.K"]
[Result "0-1"]
[ECO "D03"]
[WhiteElo "1862"]
[BlackElo "1681"]
[Annotator "NA"]
[PlyCount "71"]
[EventDate "2019.07.09"]
[EventCountry "IND"]
[SourceTitle "playchess.com"]
[Source "ChessBase"]
[SourceQuality "1"]
[TimeControl "5400+30"]

1. d4 {[%emt 0:02:10]} Nf6 {[%emt 0:00:00]} 2. Bg5 {[%emt 0:00:08]} d5 {[%emt 0:00:08]} 3. e3 {[%emt 0:00:18]} e6 {[%emt 0:00:16]} 4. Nd2 {[%emt 0:00:08]} Be7 {[%emt 0:00:38]} 5. Bd3 {[%emt 0:01:45]} h6 {[%emt 0:02:28]} 6. Bh4 {[%emt 0:00:43]} Nbd7 {[%emt 0:00:11]} 7. f4 {[%emt 0:00:23]} c5 {[%emt 0:02:20]} 8. c3 {[%emt 0:00:46]} b6 {[%emt 0:02:28]} 9. Ngf3 {[%emt 0:00:10]} Bb7 {[%emt 0:01:17]} 10. Ne5 {[%emt 0:02:10]} O-O {[%emt 0:07:54]} 11. O-O {[%emt 0:01:08]} Ne4 {[%emt 0:03:29] D03: 1 d4 d5 2 Nf3 Nf6 3 Bg5, including Torre Attack with early ...d5} 12. Be1 {[%emt 0:15:15]} (12. Bxe7 Qxe7 13. a4 Nxe5 14. fxe5 Qg5 15. Rf4 cxd4 16. cxd4 f5 17. exf6 Rxf6 18. Nf3 Qg6 19. Ne5 {0-1 (40) Yudin,S (2517)-Predke,A (2579) Samara 2017}) 12... Ndf6 $146 {[%emt 0:09:48]} ({Predecessor:} 12... Nxe5 13. dxe5 Qc7 14. Qc2 f5 15. exf6 Nxf6 16. Bg3 c4 17. Bg6 Bc5 18. Rfe1 Ng4 19. Nf1 {0-1 (43) Webster,F-Velvart,P (2195) Balatonbereny 1992}) 13. Ndf3 {[%emt 0:09:27]} Nd6 {[%emt 0:05:04]} 14. g4 {[%emt 0:03:06]} Nfe4 {[%emt 0:01:23]} 15. Qe2 {[%emt 0:06:06]} (15. Nd2 $15) 15... Qe8 {[%emt 0:03:09]} 16. Nh4 {[%emt 0:11:13]} g5 {[%emt 0:04:21]} 17. fxg5 {[%emt 0:01:29]} hxg5 {[%emt 0:00:23]} 18. Ng2 {[%emt 0:02:23]} f6 {[%emt 0:04:18]} 19. Nf3 {[%emt 0:00:07]} Kg7 {[%emt 0:13:04]} 20. h4 {[%emt 0:16:29]} Rh8 {[%emt 0:02:40]} 21. Kh2 $19 {[%emt 0:09:03]} (21. Nd2 $17 {might work better.}) 21... Nf7 {[%emt 0:13:57]} 22. Rh1 {[%emt 0:03:15]} Qb8+ {[%emt 0:06:40]} 23. Kg1 {[%emt 0:04:58]} Ng3 {[%emt 0:00:07]} 24. Bxg3 {[%emt 0:00:11]} Qxg3 {[%emt 0:00:05]} 25. Rf1 {[%emt 0:00:33]} c4 {[%emt 0:03:34]} 26. Bc2 {[%emt 0:07:01]} Qxg4 {[%emt 0:00:21]} 27. Qf2 {[%emt 0:00:22]} Qh5 {[%emt 0:04:39]} 28. Rh3 {[%emt 0:01:52]} Rag8 {[%emt 0:02:25]} 29. Nh2 {[%emt 0:01:00]} Kf8 {[%emt 0:02:07]} 30. Bd1 {[%emt 0:00:39]} Qh7 {[%emt 0:00:27]} 31. Ng4 {[%emt 0:00:32]} f5 {[%emt 0:00:55]} 32. Bc2 {[%emt 0:00:21]} gxh4 {[%emt 0:01:37]} 33. Nh2 {[%emt 0:00:42]} Ng5 {[%emt 0:01:30]} 34. Bxf5 {[%emt 0:00:33]} exf5 {[%emt 0:00:28]} 35. Qxf5+ {[%emt 0:00:18]} Qxf5 {[%emt 0:00:10]} 36. Rxf5+ {[%emt 0:00:04]} 0-1